bitfinex/quotes_ETHUSD_20220219
["timestamp","ask_amount","ask_price","bid_price","bid_amount"]
[1645268915090,0.25,2775.2,2774.7,0.90471966]
[1645268915492,0.25,2775.2,2774.8,0.14599562]
[1645268915694,0.25,2775.2,2774.8,0.14960528]
[1645268915898,0.25,2775.2,2774.8,2.85294578]
[1645268916100,1.15109,2776.0,2775.0,1.80183]
[1645268916101,0.25,2776.0,2775.0,1.80183]
[1645268916341,0.25,2776.4,2775.1,0.14960528]
[1645268916539,1.02262083,2776.0,2775.2,0.66280963]
[1645268916738,0.25,2776.4,2775.3,0.00360966]
[1645268916940,0.25,2776.4,2775.3,4.17928323]
[1645268917140,0.25,2776.4,2775.6,0.9007]
[1645268917339,0.25,2776.4,2775.8,0.9007]
[1645268917544,0.25,2776.4,2775.9,0.15467357]
[1645268917741,0.25,2776.4,2775.9,0.15662683]
[1645268917943,0.25,2776.4,2776.0,0.15467357]
[1645268917944,1.16135843,2776.4,2776.0,0.15467357]
[1645268918139,1.16135843,2776.4,2775.9,0.00195326]
[1645268918339,1.36160562,2776.3,2775.9,0.00195326]
[1645268918540,1.16135843,2776.4,2775.9,0.00195326]
[1645268918739,1.16135843,2776.4,2775.9,1.80127]
[1645268918940,1.16135843,2776.4,2776.0,0.90267739]
[1645268919342,1.36162858,2776.3,2776.0,0.90267739]
[1645268919943,1.36162858,2776.3,2775.8,0.9008611]
[1645268920191,1.36162858,2776.3,2776.0,0.00194221]
[1645268920387,1.16135843,2776.4,2776.0,0.00194221]
[1645268920986,1.16135843,2776.4,2776.0,0.9008167]
[1645268921393,12.16135843,2776.4,2776.1,0.00194217]
[1645268921587,0.71498624,2775.9,2775.6,1.80147]
[1645268921986,0.71498624,2775.9,2775.7,0.17136386]
[1645268922386,0.71498624,2775.9,2775.4,0.17136386]
[1645268922795,0.96498624,2775.9,2775.5,0.17136386]
[1645268923091,12.29828624,2775.9,2775.3,0.00360966]
[1645268923288,1.34552002,2775.8,2775.0,0.17514215]
[1645268923488,1.13912853,2775.4,2775.1,0.00360966]
[1645268923938,1.13912853,2775.4,2774.9,0.17514215]
[1645268924137,1.13912853,2775.4,2775.0,0.17153249]
[1645268924438,1.13912853,2775.4,2775.1,0.17153249]
[1645268924640,11.0,2775.3,2775.2,0.17153249]
[1645268924839,11.0,2775.3,2774.7,0.00360966]
[1645268924840,11.25,2775.3,2774.7,0.00360966]
[1645268925040,11.25,2775.3,2775.1,0.00194534]
[1645268925237,0.1801,2775.2,2775.1,0.00194534]
[1645268925443,2.42698957,2775.2,2775.1,0.00194534]
[1645268925637,12.08142,2775.2,2775.1,0.00194534]
[1645268925838,1.98283,2775.2,2775.1,0.00194534]
[1645268926039,0.8472386,2774.9,2774.8,0.17181218]
[1645268926439,0.8472386,2774.9,2774.4,0.90128]
[1645268926638,0.8472386,2774.9,2774.5,0.17542587]
[1645268927038,0.8472386,2774.9,2774.6,0.17181218]
[1645268927243,0.8472386,2774.9,2774.7,0.17181218]
[1645268927439,0.8472386,2774.9,2774.8,0.17181218]
[1645268927689,0.8472386,2774.9,2774.6,0.0021167]
[1645268927891,0.8472386,2774.9,2774.6,0.17392888]
[1645268928092,0.90134,2775.1,2774.6,0.17754257]
[1645268928289,0.90134,2775.1,2774.7,0.17542587]
[1645268928488,0.90134,2775.1,2774.8,0.17181218]
[1645268928890,0.90134,2775.1,2774.9,0.17181218]
[1645268929087,2.04102165,2775.1,2774.6,0.00211669]
[1645268929288,2.04102165,2775.1,2774.6,0.17388657]
[1645268929487,2.04102165,2775.1,2774.7,0.17176988]
[1645268929689,2.04102165,2775.1,2774.8,0.17176988]
[1645268929891,2.04102165,2775.1,2774.7,0.00211667]
[1645268930289,2.04102165,2775.1,2774.7,0.17750024]
[1645268930488,2.04102165,2775.1,2774.8,0.17176988]
[1645268930693,13.04102165,2775.1,2774.9,0.17176988]
[1645268930887,2.04102165,2775.1,2775.0,0.17176988]
[1645268931088,2.04102165,2775.1,2774.8,0.00199427]
[1645268931939,2.04102165,2775.1,2774.7,0.17538357]
[1645268932139,2.04102165,2775.1,2774.8,0.17376414]
[1645268932337,2.04102165,2775.1,2774.9,0.17176988]
[1645268932543,2.04102165,2775.1,2774.8,0.00199426]
[1645268933142,2.04102165,2775.1,2774.7,0.17171749]
[1645268933351,2.04102165,2775.1,2774.8,0.17371175]
[1645268933352,1.13968165,2775.1,2774.8,0.17371175]
[1645268933545,1.13968165,2775.1,2774.8,0.00199426]
[1645268934144,1.13968165,2775.1,2774.8,0.17371175]
[1645268934345,1.13968165,2775.1,2774.9,0.17171749]
[1645268934543,1.13968165,2775.1,2774.8,0.00192808]
[1645268934746,11.0,2775.0,2774.8,0.00192808]
[1645268934950,1.13968165,2775.1,2774.8,0.00192808]
[1645268935590,1.13968165,2775.1,2774.7,0.17162422]
[1645268935790,1.13968165,2775.1,2774.8,0.1735523]
[1645268935996,1.13968165,2775.1,2774.8,0.00192808]
[1645268936791,1.13968165,2775.1,2774.6,0.17162422]
[1645268936996,1.13968165,2775.1,2774.8,0.00192808]
[1645268937793,0.25,2775.3,2774.8,0.00192808]
[1645268937993,0.25,2775.3,2774.8,0.17523791]
[1645268938192,0.25,2775.3,2774.9,0.9010332]
[1645268938392,0.25,2775.3,2775.0,0.17162422]
[1645268938597,0.25,2775.3,2775.0,0.17523791]
[1645268938846,11.71498624,2775.9,2775.1,0.17162422]
[1645268938847,0.71498624,2775.9,2775.1,0.17162422]
[1645268939046,0.71498624,2775.9,2775.2,0.17162422]
[1645268939243,0.71498624,2775.9,2775.2,1.07256002]
[1645268939442,0.71498624,2775.9,2775.3,0.17162422]
[1645268939643,0.71498624,2775.9,2775.3,1.97327422]
[1645268939842,0.71498624,2775.9,2775.4,0.17162422]
[1645268940046,0.71498624,2775.9,2775.5,0.90083]
[1645268940244,0.71498624,2775.9,2775.6,0.17162422]
[1645268940447,0.71498624,2775.9,2775.7,0.17162422]
[1645268940844,0.71498624,2775.9,2775.5,5.40674293]
[1645268940845,0.71498624,2775.9,2775.8,0.17162422]
[1645268941045,0.71498624,2775.9,2775.7,0.17162422]
[1645268941251,0.71498624,2775.9,2775.8,0.17162422]
[1645268941447,0.71498624,2775.9,2775.7,0.17162422]
[1645268941846,0.71498624,2775.9,2775.7,0.17356403]
[1645268942046,0.71498624,2775.9,2775.7,1.07432133]
[1645268942246,0.71498624,2775.9,2775.8,0.17162422]
[1645268946351,0.71498624,2775.9,2775.8,3.67162422]
[1645268946555,0.25,2776.5,2775.8,3.67162422]
[1645268946749,0.25,2776.5,2775.9,13.41512422]
[1645268946945,0.25,2776.5,2776.0,4.57214422]
[1645268947144,0.25,2776.5,2776.1,1.59309422]
[1645268947346,0.25,2776.5,2776.2,3.67162422]
[1645268947545,0.25,2776.5,2776.3,1.07208502]
[1645268947744,0.25,2776.5,2776.4,0.17162422]
[1645268947946,11.1801,2777.3,2776.4,0.17162422]
[1645268948146,1.58160836,2777.2,2776.6,2.06765731]
[1645268948345,1.33160836,2777.1,2776.6,0.90047]
[1645268948545,1.33160836,2777.1,2776.2,2.322249]
[1645268948849,0.90066,2777.1,2776.3,0.18371237]
[1645268949245,1.06870997,2777.0,2776.3,0.18371237]
[1645268949648,1.06870997,2777.0,2776.3,1.08439547]
[1645268949847,1.06870997,2777.0,2776.3,0.9006831]
[1645268950093,1.96939997,2777.0,2776.3,0.9006831]
[1645268951294,1.96939997,2777.0,2776.2,0.9007357]
[1645268951696,1.96939997,2777.0,2776.0,5.83165476]
[1645268951697,13.87013997,2777.0,2776.0,5.83165476]
[1645268951997,11.90084,2776.7,2776.0,4.03024026]
[1645268952298,1.14836314,2776.2,2776.0,4.0283]
[1645268952495,1.14836314,2776.2,2775.8,0.01102002]
[1645268952696,1.14836314,2776.2,2776.0,0.00194026]
[1645268953697,1.14836314,2776.2,2775.4,1.801847]
[1645268953939,1.14836314,2776.2,2776.0,0.0019403]
[1645268954741,11.0,2776.1,2775.2,3.1582]
[1645268955043,14.5,2776.1,2776.0,0.0019403]
[1645268955241,15.58116,2776.1,2776.0,0.0019403]
[1645268955843,16.48214,2776.1,2776.0,0.0019403]
[1645268956044,16.30204,2776.1,2775.1,2.7808]
[1645268956242,0.88522257,2775.7,2775.1,2.7808]
[1645268956442,1.13522257,2775.7,2775.1,2.7808]
[1645268956843,3.5,2775.6,2775.1,2.7808]
[1645268957048,3.5,2775.6,2775.0,0.00361369]
[1645268957049,14.5,2775.6,2775.0,0.00361369]
[1645268957447,14.5,2775.6,2775.2,0.00201855]
[1645268957448,14.6801,2775.6,2775.2,0.00201855]
[1645268957691,11.0,2775.5,2775.2,0.00201855]
[1645268958090,12.80248,2775.5,2775.2,0.00201855]
[1645268958290,0.90124,2775.5,2774.6,0.00361369]
[1645268958690,11.0,2775.6,2775.2,0.00201855]
[1645268959089,2.03631257,2775.7,2775.2,0.00201855]
[1645268959592,0.25,2775.7,2775.0,0.83765961]
[1645268959795,0.25,2775.7,2775.3,0.00201852]
[1645268960392,0.25,2775.7,2775.3,1.80380662]
[1645268960590,0.25,2775.7,2775.3,2.70469662]
[1645268960797,0.25,2775.7,2775.3,1.80178]
[1645268960993,0.25,2775.7,2775.4,0.00192105]
[1645268961643,0.25,2775.7,2775.5,0.90091]
[1645268961848,0.25,2775.7,2775.6,0.9008873]
[1645268962046,0.18700255,2775.7,2775.6,0.9008873]
[1645268962248,1.56306823,2776.6,2775.6,0.9008873]
[1645268962249,0.25,2776.6,2775.6,0.9008873]
[1645268962644,0.25,2776.6,2775.7,0.90072]
[1645268962844,0.86385836,2776.5,2776.0,1.8013616]
[1645268963045,0.86385836,2776.5,2775.9,1.8013632]
[1645268963444,0.86385836,2776.5,2776.0,0.00192063]
[1645268963846,0.86385836,2776.5,2776.0,0.90260063]
[1645268964050,0.86385836,2776.5,2776.1,0.900697]
[1645268964647,0.86385836,2776.5,2776.0,0.00194471]
[1645268965092,2.66553836,2776.5,2776.0,0.00194471]
[1645268965295,3.56651836,2776.5,2776.0,0.00194471]
[1645268965492,3.56651836,2776.5,2775.5,0.9009]
[1645268965691,1.05946551,2776.0,2775.5,0.9009]
[1645268966594,1.05946551,2776.0,2775.6,0.9009084]
[1645268966998,1.05946551,2776.0,2775.6,0.00194496]
[1645268967992,1.05946551,2776.0,2775.6,0.9009221]
[1645268968193,1.05946551,2776.0,2775.7,0.00194437]
[1645268968848,1.32780963,2775.9,2775.7,0.00194437]
[1645268969243,1.32780963,2775.9,2775.5,0.9009646]
[1645268969442,1.32780963,2775.9,2775.2,3.1644]
[1645268969443,12.32780963,2775.9,2775.7,0.00194437]
[1645268969650,1.05946551,2776.0,2775.7,0.00194437]
[1645268969651,12.32780963,2775.8,2775.7,0.00194437]
[1645268970444,12.32780963,2775.8,2775.2,3.1644]
[1645268970643,12.32780963,2775.8,2775.6,0.0019444]
[1645268970644,1.32780963,2775.7,2775.6,0.0019444]
[1645268971444,12.32780963,2775.7,2775.6,0.0019444]
[1645268971642,12.32780963,2775.7,2775.0,0.18982628]
[1645268971643,0.90115,2775.5,2775.0,0.18982628]
[1645268971843,0.90115,2775.5,2775.1,0.18982628]
[1645268972046,1.15115,2775.5,2775.2,0.18982628]
[1645268972250,1.15115,2775.5,2774.8,0.00361369]
[1645268972445,1.15115,2775.5,2774.8,0.19348851]
[1645268972691,1.15115,2775.5,2774.8,1.09462851]
[1645268972894,1.15115,2775.5,2774.9,0.18987482]
[1645268972895,0.85060681,2775.2,2774.9,0.18987482]
[1645268973093,0.85060681,2775.2,2775.0,0.00194008]
[1645268973594,0.25,2775.3,2775.0,0.90304248]
[1645268973798,0.25,2775.3,2775.1,0.18987482]
[1645268975399,0.25,2775.3,2775.1,0.19181487]
[1645268975801,1.00418912,2775.2,2775.1,0.19181487]
[1645268976449,1.00418912,2775.2,2775.1,0.18987482]
[1645268976646,0.25,2775.3,2775.0,0.19181597]
[1645268976848,0.25,2775.3,2775.1,0.18987482]
[1645268977045,0.25,2775.3,2775.0,0.00194115]
[1645268977450,1.15119,2775.3,2775.0,0.00194115]
[1645268977645,1.15119,2775.3,2774.9,1.09121734]
[1645268977646,0.25,2775.3,2774.9,1.09121734]
[1645268977845,1.35711996,2775.3,2775.0,0.19200639]
[1645268979649,1.32899017,2775.2,2775.0,0.19200639]
[1645268979851,1.32899017,2775.2,2775.0,0.00194115]
[1645268979852,3.13151017,2775.2,2775.0,0.00194115]
[1645268980097,3.13151017,2775.2,2774.7,0.1901496]
[1645268980098,3.13166017,2775.1,2774.7,0.1901496]
[1645268980296,3.13166017,2775.1,2775.0,0.00194094]
[1645268980297,1.80267,2775.1,2775.0,0.00194094]
[1645268980493,3.13166872,2775.1,2775.0,0.00194094]
[1645268980697,1.32899872,2775.1,2775.0,0.00194094]
[1645268980894,1.3293175,2775.1,2775.0,0.00194094]
[1645268981295,0.90128,2775.0,2774.8,0.19012556]
[1645268981494,1.3293175,2775.1,2774.8,1.09133186]
[1645268981695,1.35711996,2775.3,2774.9,0.19012556]
[1645268981895,1.32887362,2775.2,2774.9,0.19012556]
[1645268982095,1.32887362,2775.2,2775.0,0.19012556]
[1645268982295,1.35711996,2775.3,2774.3,3.50361369]
[1645268982494,1.35591316,2775.3,2774.4,0.19004202]
[1645268982698,1.35591316,2775.3,2774.7,1.8022836]
[1645268982699,2.25708316,2775.3,2774.7,1.8022836]
[1645268982895,1.32889192,2775.2,2774.8,0.19004202]
[1645268983094,1.32889192,2775.2,2774.9,0.19004202]
[1645268983296,1.32889192,2775.2,2774.7,0.00361369]
[1645268983496,1.04008055,2774.8,2774.7,0.00361369]
[1645268983694,1.04008055,2774.8,2774.3,0.00361369]
[1645268983948,0.77953844,2774.8,2774.4,0.90125]
[1645268984147,0.90127,2775.0,2774.5,0.19006451]
[1645268984344,0.90127,2775.0,2774.6,1.99239221]
[1645268984543,0.90127,2775.0,2774.7,0.19006451]
[1645268984843,0.90127,2775.0,2774.8,0.19006451]
[1645268985250,0.90127,2775.0,2774.7,0.00583637]
[1645268985443,1.80521666,2775.2,2774.8,0.18526794]
[1645268985444,0.90396666,2775.2,2774.8,0.18526794]
[1645268986242,0.90396666,2775.2,2774.9,0.00222263]
[1645268986444,0.90396666,2775.2,2774.9,0.18749057]
[1645268986643,0.90396666,2775.2,2774.9,1.08864417]
[1645268986842,0.90396666,2775.2,2775.0,0.18526794]
[1645268987446,0.90396666,2775.2,2775.0,0.18736952]
[1645268987692,0.90396666,2775.2,2775.0,0.00210158]
[1645268988291,0.90396666,2775.2,2774.9,0.9011536]
[1645268988693,1.80515666,2775.2,2775.0,0.00210158]
[1645268989593,1.80515666,2775.2,2774.9,0.9011536]
[1645268989795,1.80515666,2775.2,2775.0,0.00210158]
[1645268990597,1.80515666,2775.2,2775.0,0.18725739]
[1645268990598,2.70638666,2775.2,2775.0,0.18725739]
[1645268990795,2.70638666,2775.2,2774.8,0.9012277]
[1645268991096,0.90122,2775.1,2775.0,0.00210794]
[1645268991350,0.90396666,2775.2,2775.0,0.00210794]
[1645268991545,0.90396666,2775.2,2775.0,0.18720852]
[1645268991844,1.80519666,2775.2,2775.0,0.00210794]
[1645268992044,0.90126,2775.1,2774.7,0.1850854]
[1645268992242,0.90126,2775.1,2774.6,0.00361369]
[1645268992243,0.90126,2775.1,2775.0,0.00210794]
[1645268992445,2.23449115,2775.1,2775.0,0.00210794]
[1645268992645,0.90126,2775.1,2775.0,0.00210794]
[1645268993144,0.90126,2775.1,2774.9,0.1850854]
[1645268993145,2.23557374,2775.1,2774.9,0.1850854]
[1645268993344,0.90126,2775.1,2774.9,0.1850854]
[1645268993544,0.90126,2775.1,2774.9,0.00210796]
[1645268994545,1.80253,2775.1,2774.7,0.18511931]
[1645268994746,0.90126,2775.0,2774.9,0.00210754]
[1645268994943,0.90126,2775.0,2774.9,0.18722685]
[1645268995200,2.23706646,2775.0,2774.9,0.18722685]
[1645268995401,2.23706646,2775.0,2774.9,0.00210754]
[1645268995606,2.23706646,2775.0,2774.5,0.18917537]
[1645268995799,2.70391,2775.1,2774.6,0.19278906]
[1645268995800,0.90134,2774.8,2774.6,0.19278906]
[1645268996000,0.90134,2774.8,2774.7,0.18917537]
[1645268996201,2.23340275,2774.8,2774.7,0.18917537]
[1645268997002,2.23340275,2774.8,2774.6,0.00210761]
[1645268997303,2.23345275,2774.7,2774.6,0.19128298]
[1645268997702,2.23345275,2774.7,2774.6,0.00210761]
[1645268997901,2.23345275,2774.7,2774.4,0.18917537]
[1645268998107,0.90233049,2774.6,2774.5,0.18917537]
[1645268998302,1.80373049,2774.6,2774.5,0.00210767]
[1645268999144,1.80373049,2774.6,2774.4,0.18917537]
[1645268999444,1.80373049,2774.6,2774.5,0.18917537]
[1645268999744,3.1364885,2774.6,2774.5,0.18917537]
[1645268999946,3.1364885,2774.6,2774.4,0.19128306]
[1645269000146,1.80373049,2774.6,2774.5,0.18917537]
[1645269000347,1.15135,2774.7,2774.4,1.09262826]
[1645269000548,1.15135,2774.7,2774.5,0.18917537]
[1645269000947,1.33276218,2774.6,2774.5,0.18917537]
[1645269001447,1.33276218,2774.6,2774.4,0.19128307]
[1645269001649,1.33276218,2774.6,2774.5,0.18917537]
[1645269003993,1.17341193,2774.7,2774.5,0.18917537]
[1645269004194,1.17341193,2774.7,2774.6,0.18917537]
[1645269004394,2.49995068,2774.7,2774.4,0.19128307]
[1645269004596,1.32658399,2774.6,2774.5,0.19489221]
[1645269004794,0.532506,2774.7,2774.4,0.19699991]
[1645269004995,1.683836,2774.7,2774.5,1.09620781]
[1645269005195,1.683836,2774.7,2774.6,0.19489221]
[1645269005394,3.02226588,2774.7,2774.6,0.19489221]
[1645269005597,0.782506,2774.7,2774.6,0.19489221]
[1645269005794,0.25,2774.7,2774.6,0.19489221]
[1645269007444,3.308,2775.2,2774.6,0.19489221]
[1645269007646,1.09495372,2775.1,2774.7,0.1985059]
[1645269007843,1.09495372,2775.1,2774.5,0.00572136]
[1645269007844,1.99623372,2775.1,2774.5,0.00572136]
[1645269008043,0.85084526,2775.0,2774.5,0.00572136]
[1645269008445,0.85084526,2775.0,2774.6,0.9012786]
[1645269008653,0.90128,2774.9,2774.6,0.9012786]
[1645269009046,0.90128,2774.9,2774.7,0.00210763]
[1645269009944,0.90128,2774.9,2774.6,0.00361369]
[1645269010200,0.90128,2774.9,2774.7,0.00210762]
[1645269010400,0.90128,2774.9,2774.7,0.90337582]
[1645269010806,2.05256,2775.2,2774.8,0.90111]
[1645269010807,0.25,2775.2,2774.8,0.90111]
[1645269011503,0.25,2775.2,2774.9,0.00210757]
[1645269011702,0.25,2775.2,2774.9,0.90314817]
[1645269011902,0.25,2775.2,2774.9,2.70523817]
[1645269012305,0.25,2775.2,2774.9,1.80419817]
[1645269012503,0.25,2775.2,2774.9,1.8020906]
[1645269012703,0.25,2775.2,2774.9,1.80419816]
[1645269012909,0.68341957,2775.9,2775.1,1.8015369]
[1645269013110,1.157205,2776.2,2775.3,0.90073]
[1645269013111,0.25,2776.0,2775.3,0.90073]
[1645269013307,0.25,2776.0,2775.5,0.85876509]
[1645269013506,0.25,2776.0,2775.5,1.37976509]
[1645269013947,0.25,2776.0,2775.5,1.38187249]
[1645269014350,0.25,2776.0,2775.5,2.28265249]
[1645269014551,0.25,2776.0,2775.6,1.8015105]
[1645269014749,4.54043785,2776.7,2775.7,3.5]
[1645269014750,0.68341957,2776.3,2775.7,3.5]
[1645269014950,0.68341957,2776.6,2775.7,4.021]
[1645269015149,0.68341957,2776.7,2775.7,4.021]
[1645269015348,0.68341957,2776.7,2775.7,1.42165]
[1645269015550,2.78361957,2776.8,2775.8,0.9006453]
[1645269015750,0.68341957,2776.8,2776.1,2.69120659]
[1645269015952,1.81816663,2776.9,2776.1,2.31172659]
[1645269016350,1.13474706,2776.9,2776.1,2.31172659]
[1645269017049,1.81816663,2776.9,2776.1,2.31172659]
[1645269017248,1.13474706,2776.9,2776.2,1.8009217]
[1645269017701,0.25,2776.9,2776.2,1.8009217]
[1645269018107,0.25,2776.9,2776.2,3.6018917]
[1645269018302,0.25,2776.9,2776.3,0.90056]
[1645269018507,0.25,2776.9,2776.4,0.9005137]
[1645269018908,0.25,2776.9,2776.1,0.521]
[1645269019103,0.9199198,2776.7,2776.1,0.521]
[1645269019604,0.9199198,2776.7,2776.1,2.3221949]
[1645269020004,0.9199198,2776.7,2776.1,0.521]
[1645269020206,0.9199198,2776.7,2776.0,0.00231497]
[1645269020207,1.06440303,2776.2,2776.0,0.00231497]
[1645269020405,0.25,2776.3,2776.0,0.00231497]
[1645269020806,0.25,2776.3,2775.6,3.5]
[1645269021005,0.25,2776.3,2775.5,1.2257]
[1645269021204,0.25,2776.3,2776.0,0.00231483]
[1645269021462,0.25,2776.3,2776.0,0.90304863]
[1645269022147,0.25,2776.3,2776.0,0.9007338]
[1645269022348,0.25,2776.3,2776.0,0.90304863]
[1645269022948,0.25,2776.3,2776.0,0.00231483]
[1645269023152,0.25,2776.3,2775.7,1.8014142]
[1645269023549,0.25,2776.3,2776.0,0.00231483]
[1645269023749,1.15086,2776.3,2776.0,0.00231483]
[1645269024350,0.25,2776.3,2775.7,0.9007993]
[1645269024749,0.25,2776.3,2776.0,0.00231483]
[1645269024951,0.25,2776.3,2775.7,0.9007993]
[1645269024952,0.00171544,2775.9,2775.7,0.9007993]
[1645269025404,0.00171544,2775.9,2775.5,1.2257]
[1645269025605,0.00171544,2775.9,2775.1,3.3845]
[1645269025804,1.02549274,2775.6,2775.1,3.3845]
[1645269026004,1.27549274,2775.6,2774.8,2.02344165]
[1645269026203,1.27549274,2775.6,2774.8,0.86024165]
[1645269026608,1.27549274,2775.6,2774.9,1.8020006]
[1645269027705,1.27549274,2775.6,2774.6,0.00361369]
[1645269027706,1.31693771,2775.5,2775.0,0.200336]
[1645269028005,1.31693771,2775.5,2774.6,0.00361369]
[1645269028204,1.31693771,2775.5,2774.6,0.2097139]
[1645269028403,1.15118,2775.4,2775.1,0.00232006]
[1645269028605,0.90121,2775.2,2775.1,0.00232006]
[1645269028856,1.8507181,2775.2,2775.1,0.00232006]
[1645269029252,1.8507181,2775.2,2774.8,0.20610021]
[1645269029447,1.8507181,2775.2,2775.0,0.00232009]
[1645269029650,1.8507181,2775.2,2775.0,0.2084203]
[1645269029845,1.8507181,2775.2,2775.0,0.00232009]
[1645269030648,1.8507181,2775.2,2774.8,0.20600058]
[1645269030847,1.8507181,2775.2,2775.0,0.0023201]
[1645269031049,0.9495081,2775.2,2775.0,0.0023201]
[1645269032449,1.15114,2775.4,2775.0,0.0023201]
[1645269032702,0.25,2775.4,2775.0,0.0023201]
[1645269032901,0.25,2775.4,2774.8,0.20600058]
[1645269033102,0.25,2775.4,2775.1,0.00232008]
[1645269033303,3.1833,2775.8,2775.1,0.00232008]
[1645269033502,1.13489672,2775.4,2775.1,0.00232008]
[1645269034205,1.31169402,2775.3,2774.8,0.20600058]
[1645269034407,1.31169402,2775.3,2775.1,0.00232006]
[1645269035404,1.31169402,2775.3,2774.8,0.20605567]
[1645269035603,1.31169402,2775.3,2775.1,0.00232008]
[1645269036451,1.31169402,2775.3,2774.8,0.20605567]
[1645269036651,1.31169402,2775.3,2774.9,0.9011824]
[1645269036853,1.31169402,2775.3,2775.1,0.00213497]
[1645269037649,1.31169402,2775.3,2774.9,0.9011824]
[1645269038046,1.31169402,2775.3,2775.1,0.00213497]
[1645269038448,1.13489672,2775.4,2775.1,0.00213497]
[1645269038852,1.13489672,2775.4,2774.8,0.20606064]
[1645269039050,1.13489672,2775.4,2774.9,0.20606064]
[1645269039249,1.13489672,2775.4,2775.1,0.00213493]
[1645269039653,1.13489672,2775.4,2775.1,0.20819557]
[1645269040103,1.13489672,2775.4,2775.1,0.20606064]
[1645269040305,1.13489672,2775.4,2775.1,1.10900722]
[1645269040504,1.13489672,2775.4,2775.1,1.80406108]
[1645269040805,1.13489672,2775.4,2775.1,0.90300108]
[1645269041504,0.25,2775.7,2775.1,0.90300108]
[1645269041703,1.30953139,2775.6,2775.2,0.901034]
[1645269042309,1.30953139,2775.6,2775.2,1.802064]
[1645269042705,1.30953139,2775.6,2775.3,0.00188648]
[1645269042905,1.30953139,2775.6,2775.3,0.90291128]
[1645269043708,1.30953139,2775.6,2775.3,0.9010248]
[1645269043950,1.30953139,2775.6,2775.3,0.90296712]
[1645269044150,1.30953139,2775.6,2775.3,1.80394712]
[1645269044350,1.30953139,2775.6,2775.4,0.9009699]
[1645269045350,0.25,2775.7,2775.4,0.90291219]
[1645269045551,0.25,2775.7,2775.6,0.00089151]
[1645269045750,1.56039294,2775.7,2775.6,0.00089151]
[1645269046552,1.56039294,2775.7,2775.5,0.00194218]
[1645269046553,0.00041492,2775.6,2775.5,0.00194218]
[1645269046750,0.00041492,2775.6,2775.5,0.20991034]
[1645269047354,0.00041492,2775.6,2775.5,0.20796816]
[1645269050504,0.00041492,2775.6,2775.5,2.00953816]
[1645269055107,0.00041492,2775.6,2775.5,0.20796816]
[1645269055503,1.31263171,2775.6,2775.5,0.20796816]
[1645269055704,1.31263171,2775.6,2774.9,2.32299]
[1645269055903,1.31221679,2775.5,2775.0,0.21771144]
[1645269056104,1.31221679,2775.4,2775.0,0.21771144]
[1645269056305,1.0130061,2775.5,2775.1,0.21771144]
[1645269056503,1.30303944,2775.4,2775.2,0.21771144]
[1645269056903,1.30303944,2775.4,2775.3,0.21771144]
[1645269057507,1.30303944,2775.4,2775.1,0.21771144]
[1645269057909,1.30303944,2775.4,2775.2,0.90103]
[1645269058107,1.30303944,2775.4,2775.3,0.21771144]
[1645269058507,1.0130061,2775.5,2775.3,0.21771144]
[1645269058951,1.30300156,2775.4,2775.1,1.80428756]
[1645269059150,1.30300156,2775.4,2775.2,1.1188628]
[1645269059349,1.30300156,2775.4,2775.3,0.2178175]
[1645269063002,0.00041492,2775.6,2775.3,0.2178175]
[1645269063207,0.00041492,2775.6,2775.3,1.1187475]
[1645269063402,0.00041492,2775.6,2775.4,1.1187688]
[1645269063604,0.00041492,2775.6,2775.5,0.2178175]
[1645269064105,1.30447451,2775.6,2775.5,0.2178175]
[1645269070408,1.30447451,2775.6,2775.4,0.90287979]
[1645269070608,1.30447451,2775.6,2775.5,0.21833458]
[1645269071011,1.30447451,2775.6,2775.5,0.21831117]
[1645269074654,1.30447451,2775.6,2775.5,1.11919117]
[1645269076857,1.30655331,2775.6,2775.5,1.11919117]
[1645269077057,0.00041492,2775.6,2775.5,1.11919117]
[1645269077456,0.25,2775.7,2775.5,1.11919117]
[1645269077706,0.25,2775.7,2775.6,0.21831117]
[1645269078105,1.55618347,2775.7,2775.6,0.21831117]
[1645269078310,0.00171544,2775.9,2775.6,0.21831117]
[1645269078511,0.00171544,2775.9,2775.6,2.01978117]
[1645269078708,0.00171544,2775.9,2775.7,0.21831117]
[1645269079610,0.00171544,2775.9,2775.8,1.82713355]
[1645269079906,0.00171544,2775.9,2775.8,2.04544472]
[1645269080707,0.00171544,2775.9,2775.8,1.11901117]
[1645269080907,0.00171544,2775.9,2775.8,0.21831117]
[1645269081953,0.00171544,2775.9,2775.8,1.11908117]
[1645269082354,0.00171544,2775.9,2775.8,0.21831117]
[1645269086709,1.30733298,2775.9,2775.8,0.21831117]
[1645269087705,1.30733298,2775.9,2775.8,1.11907117]
[1645269087906,1.30733298,2775.9,2775.8,0.21831117]
[1645269090358,1.30733298,2775.9,2775.8,1.11908117]
[1645269098760,0.00171544,2775.9,2775.8,1.11908117]
[1645269101812,0.00070368,2775.9,2775.8,1.11908117]
[1645269103713,0.00070368,2775.9,2775.8,0.21831117]
[1645269103955,1.30269215,2775.9,2775.8,0.21831117]
[1645269110116,1.30269215,2775.9,2775.8,1.11908117]
[1645269114466,1.30269215,2775.9,2775.8,0.21831117]
[1645269117027,1.30269215,2775.9,2775.8,1.11908117]
[1645269117826,1.30269215,2775.9,2775.8,0.21831117]
[1645269119069,2.19708394,2775.9,2775.8,0.21831117]
[1645269119366,2.19708394,2775.9,2775.8,0.23146084]
[1645269119569,2.88050351,2775.9,2775.8,0.2315003]
[1645269119864,2.88050351,2775.9,2775.7,0.00193178]
[1645269120065,0.9011,2775.4,2775.1,1.81528531]
[1645269120266,1.29546026,2775.3,2775.2,0.23144221]
[1645269121467,1.29546026,2775.4,2775.1,0.6827377]
[1645269121666,1.29546026,2775.3,2775.1,0.6827377]
[1645269121866,1.29546026,2775.2,2775.0,0.68635139]
[1645269122067,2.19661026,2775.2,2775.1,0.00232333]
[1645269122912,2.19661026,2775.2,2775.0,0.91792287]
[1645269123117,0.90115,2775.2,2775.0,0.91792287]
[1645269123313,0.90115,2775.2,2775.0,0.92024623]
[1645269123513,1.29516339,2775.1,2775.0,0.00593705]
[1645269123714,1.29516339,2775.1,2775.0,0.23741837]
[1645269124216,0.90112,2775.3,2775.0,0.91783271]
[1645269124421,1.29517804,2775.2,2775.1,0.23148132]
[1645269126016,0.90112,2775.3,2775.1,0.23148132]
[1645269126217,1.29446848,2775.2,2775.1,0.23148132]
[1645269126468,1.29446848,2775.2,2775.0,0.00232336]
[1645269126766,0.90109,2775.4,2775.0,0.23148132]
[1645269126964,1.29451479,2775.3,2775.0,0.23380468]
[1645269127864,1.29451479,2775.3,2775.0,0.23148132]